[Event "Superbet Blitz Poland 2023"]
[Site "Warsaw"]
[Date "2023.05.25"]
[Round "12"]
[White "Shevchenko, Kirill"]
[Black "Wojtaszek, Radoslaw"]
[Result "1-0"]
[ECO "C77"]
[WhiteElo "2684"]
[BlackElo "2670"]
[Annotator "TA"]
[PlyCount "103"]
[EventDate "2023.05.24"]
[EventType "tourn"]
[EventCountry "POL"]
[SourceTitle "playchess.com"]
[Source "ChessBase"]
[SourceQuality "1"]
[TimeControl "300+2"]

{[%evp 13,103,5,18,0,12,7,15,15,8,11,24,36,27,36,71,65,64,40,118,100,120,131,168,126,120,132,131,127,126,69,55,0,81,64,65,71,112,35,169,168,173,177,165,120,142,150,292,153,152,152,175,0,154,132,141,126,134,99,136,97,145,89,84,20,20,20,20,20,20,20,25,25,25,0,0,0,247,141,1026,1025,1009,1008,923,904,1350,566,551,563,520,511,29986,29967]} 1. e4 {[%emt 0:00:01]} e5 {[%emt 0:00:01]} 2. Nf3 {[%emt 0:00:03]} Nc6 {[%emt 0:00:01]} 3. Bb5 {[%emt 0:00:02]} a6 {[%emt 0:00:01]} 4. Ba4 {[%emt 0:00:01]} Nf6 {[%emt 0:00:01]} 5. Nc3 {[%emt 0:00:01]} Be7 {[%emt 0:00:01]} 6. d3 {[%emt 0:00:13]} b5 {[%emt 0:00:02]} 7. Bb3 {[%emt 0:00:00]} d6 {[%emt 0:00:01]} 8. a3 {[%emt 0:00:02] C77: Ruy Lopez: 3...a6 4 Ba4 Nf6, unusual lines.} O-O {[%emt 0:00:03]} 9. h3 {[%emt 0:00:02]} Be6 {[%emt 0:00:20]} 10. Nd5 {[%emt 0:00:03] The position is equal.} Re8 {[%emt 0:00:14]} 11. O-O {[%emt 0:00:05]} Qd7 {[%emt 0:00:10]} 12. Bd2 {[%emt 0:00:04]} Bxd5 {[%emt 0:00:18]} 13. exd5 {[%emt 0:00:01]} Nd4 {[%emt 0:00:01]} 14. Nxd4 {[%emt 0:00:04]} exd4 {[%emt 0:00:02]} 15. Qf3 {[%emt 0:00:08] [#]} Bf8 $146 {[%emt 0:00:52]} (15... Qc8 $14) ({Predecessor:} 15... h6 16. Rfe1 Nh7 17. a4 Bg5 18. Rxe8+ Rxe8 19. Bxg5 Nxg5 20. Qd1 b4 21. Bc4 a5 {½-½ Quintero,R (1863)-Leurette,M (1599) FICGS rapid C 000236 email 2020 (1)}) 16. a4 {[%emt 0:00:09]} h6 {[%emt 0:00:25]} 17. Qf4 {[%emt 0:00:37]} Re2 {[%emt 0:00:10]} 18. Rfd1 {[%emt 0:00:02]} Rae8 {[%emt 0:00:05]} 19. axb5 {[%emt 0:00:15]} axb5 {[%emt 0:00:01]} 20. Qxd4 {[%emt 0:00:02]} Qf5 {[%emt 0:00:01] [#]} 21. Qf4 {[%emt 0:00:19]} (21. Re1 $1 $16 {[%cal Re1e2]}) 21... Qh5 $14 {[%emt 0:00:01]} 22. Qd4 {[%emt 0:01:17]} (22. Re1 $14) 22... R8e5 {[%emt 0:00:11]} (22... Qf5 $1 $11) 23. Bf4 $16 {[%emt 0:00:20]} Re8 {[%emt 0:00:46][%cal Of6e4]} 24. Rf1 {[%emt 0:00:03]} Nd7 {[%emt 0:00:13]} 25. c4 {[%emt 0:00:25]} ({White should play} 25. Qb4 $16) 25... Qg6 {[%emt 0:00:24]} (25... g5 $1 $14 26. Be3 Bg7) 26. Bd1 $36 {[%emt 0:00:04][%cal Bb3d1,Bd1f3,Bf3e4][%mdl 2080] White is on the roll.} (26. cxb5 Ne5 27. Bxe5 R2xe5) 26... R2e7 {[%emt 0:00:06]} 27. cxb5 {[%emt 0:00:21]} Ne5 {[%emt 0:00:01]} 28. Bxe5 {[%emt 0:00:01]} Rxe5 {[%emt 0:00:01]} 29. Bf3 {[%emt 0:00:06]} Be7 {[%emt 0:00:09]} (29... R5e7 $16 {was called for.} 30. Ra7 Rb8) 30. Rac1 {[%emt 0:00:01]} (30. Be4 $18 Qf6 31. f4) 30... Bd8 $16 {[%emt 0:00:07]} 31. Be4 {[%emt 0:00:10]} Qh5 {[%emt 0:00:01]} 32. Bf3 {[%emt 0:00:02]} Qg6 {[%emt 0:00:01]} 33. Kh1 {[%emt 0:00:06]} h5 {[%emt 0:00:21]} 34. Be4 {[%emt 0:00:10]} f5 {[%emt 0:00:01] [#]} 35. Bf3 {[%emt 0:00:06]} h4 {[%emt 0:00:02]} 36. Qc3 {[%emt 0:00:12]} Qg5 {[%emt 0:00:04]} (36... Bg5 $142) 37. d4 {[%emt 0:00:02]} (37. Kg1 $142) 37... R5e7 {[%emt 0:00:02]} 38. Rce1 {[%emt 0:00:03]} (38. Kg1 $16) 38... Rxe1 $11 {[%emt 0:00:14]} 39. Rxe1 Rxe1+ {[%emt 0:00:01]} 40. Qxe1 {[%emt 0:00:01][%mdl 4096] Endgame KQB-KQB} Bf6 {[%emt 0:00:01]} 41. Qc3 {[%emt 0:00:06]} Qf4 {[%emt 0:00:08]} 42. Qxc7 {[%emt 0:00:01] Strongly threatening b6.} Bxd4 {[%emt 0:00:01]} 43. b6 {[%emt 0:00:15] Hoping for b7.} Be5 {[%emt 0:00:18][%csl Ge5][%cal Rf4h2]} 44. Kg1 {[%emt 0:00:01] And now b7 would win.} Qb4 $2 {[%emt 0:00:14]} (44... Qh2+ $1 $11 45. Kf1 Qh1+ 46. Ke2 Qb1) 45. Be2 {[%emt 0:00:14]} ({White should try} 45. Kf1 $18 Qxb2 46. Qc8+ Kh7 47. Qxf5+ g6 48. Qf7+ Kh8 49. Be4 (49. Qxg6 Qa1+ 50. Ke2 Qb2+ 51. Kf1 Qc1+ 52. Ke2 Qb2+ 53. Kf1 $11) 49... Qxb6 50. Qxg6) 45... Bd4 $2 {[%emt 0:00:05][%mdl 8192]} (45... Kh7 $16) 46. Qc8+ $18 {[%emt 0:00:01]} (46. b7 {leads to mate.} Qe1+ 47. Kh2 Be5+ 48. f4 Bxf4+ 49. g3 Qxg3+ 50. Kh1 Qh2#) 46... Kh7 {[%emt 0:00:05]} 47. Qxf5+ {[%emt 0:00:01]} g6 {[%emt 0:00:03]} 48. Qf7+ {[%emt 0:00:01]} Kh6 {[%emt 0:00:00]} 49. Qf4+ {[%emt 0:00:05]} Kg7 {[%emt 0:00:01]} 50. b7 {[%emt 0:00:03][%cal Of4d4] Black must now prevent Qxd4+!} ({Weaker is} 50. Qxh4 Qe1+ 51. Bf1 Bxb6 $18) 50... Qe1+ {[%emt 0:00:07]} 51. Bf1 {[%emt 0:00:01]} Be5 {[%emt 0:00:01] [#]} (51... Ba7 $18 52. Qxh4 (52. Qxd6 $2 {gets mated.} Qxf2+ 53. Kh2 Qg1#) 52... Qe8) 52. Qxe5+ $3 {[%emt 0:00:02][%mdl 512] Weighted Error Value: White=0.35/Black=0.40} 1-0

[Event "Superbet Blitz Poland 2023"]
[Site "Warsaw"]
[Date "2023.05.25"]
[Round "13"]
[White "Carlsen, Magnus"]
[Black "Wojtaszek, Radoslaw"]
[Result "1-0"]
[ECO "A28"]
[WhiteElo "2853"]
[BlackElo "2670"]
[Annotator "TA"]
[PlyCount "91"]
[EventDate "2023.05.24"]
[EventType "tourn"]
[EventCountry "POL"]
[SourceTitle "playchess.com"]
[Source "ChessBase"]
[SourceQuality "1"]
[TimeControl "300+2"]

{[%evp 11,91,-14,25,22,33,31,16,27,30,25,27,27,29,31,20,30,107,70,60,62,73,50,67,66,83,79,72,66,85,85,125,120,111,81,87,84,89,58,80,0,87,84,83,78,85,75,85,91,123,118,157,122,135,106,250,251,308,306,302,303,293,289,306,255,274,295,266,249,358,321,446,440,570,554,623,610,797,777,1066,929,1971,1927]} 1. c4 {[%emt 0:00:01]} Nf6 {[%emt 0:00:02]} 2. Nc3 {[%emt 0:00:02]} e5 {[%emt 0:00:01]} 3. Nf3 {[%emt 0:00:02]} Nc6 {[%emt 0:00:02]} 4. d4 {[%emt 0:00:02]} exd4 {[%emt 0:00:02]} 5. Nxd4 {[%emt 0:00:01]} Bb4 {[%emt 0:00:02]} 6. g3 {[%emt 0:00:01]} O-O {[%emt 0:00:13]} 7. Bg2 $1 {[%emt 0:00:02] A28: English Opening: Four Knights Variation.} Ne5 {[%emt 0:00:16]} 8. Qb3 $1 {[%emt 0:01:00]} Bc5 {[%emt 0:00:01]} 9. Nc2 {[%emt 0:00:02] The position is equal.} d6 {[%emt 0:00:21]} 10. Na4 {[%emt 0:00:02]} Bb6 {[%emt 0:00:29]} 11. Nxb6 {[%emt 0:00:02]} axb6 {[%emt 0:00:01]} 12. Qc3 {[%emt 0:00:10]} Re8 {[%emt 0:00:13]} 13. O-O {[%emt 0:00:05] [#]} Be6 $146 {[%emt 0:00:04]} (13... Nc6 $11 {keeps the balance.}) ({Predecessor:} 13... d5 14. cxd5 Nxd5 15. Qd4 Nf6 16. Qxd8 Rxd8 17. Bf4 Re8 18. Nd4 c6 19. a4 Bd7 {½-½ Artemiev,V (2701)-Lazavik,D (2544) RUS-chT 30th 2023 (2.1)}) 14. b3 {[%emt 0:00:06]} Qc8 {[%emt 0:00:09]} 15. Bg5 {[%emt 0:00:06] This pair of bishops is nice.} Ned7 {[%emt 0:00:31]} 16. Nd4 {[%emt 0:00:10]} h6 {[%emt 0:00:19]} 17. Be3 {[%emt 0:00:12]} Bg4 {[%emt 0:00:14]} 18. f3 {[%emt 0:00:41]} Bh5 {[%emt 0:00:03]} 19. Rfe1 {[%emt 0:00:01]} Bg6 {[%emt 0:00:14]} 20. Bf2 {[%emt 0:00:01]} Nc5 {[%emt 0:00:06]} 21. e4 {[%emt 0:00:04]} Nfd7 {[%emt 0:00:10]} 22. a4 {[%emt 0:00:13]} Ne5 {[%emt 0:00:19]} 23. Rad1 {[%emt 0:00:02]} Nc6 {[%emt 0:00:01]} 24. Nb5 {[%emt 0:00:06]} Na7 {[%emt 0:00:17]} 25. Nd4 $40 {[%emt 0:00:20][%cal Bb5d4,Bd4c2,Bc2e3,Be3d5,Bd5f4][%mdl 160] White is up to no good. White is much more active.} Nc6 {[%emt 0:00:01]} 26. Nc2 {[%emt 0:00:32]} Na5 {[%emt 0:00:21] [#]} 27. Rb1 {[%emt 0:00:09]} Qd7 {[%emt 0:00:06]} 28. Ne3 {[%emt 0:00:07]} Nc6 {[%emt 0:00:09]} 29. Nd5 {[%emt 0:00:19]} Ne7 {[%emt 0:00:09]} 30. Nf4 {[%emt 0:00:02]} Bh7 {[%emt 0:00:02]} 31. Rbd1 {[%emt 0:00:01]} Nc6 {[%emt 0:00:13]} 32. Nd5 {[%emt 0:00:03]} Rad8 {[%emt 0:00:05] [#] This move loses the game for Black.} (32... Qd8 $16) 33. a5 $1 $18 {[%emt 0:00:13][%mdl 576] Deflection} bxa5 {[%emt 0:00:39]} (33... Ne7 34. Nf4) 34. Bxc5 {[%emt 0:00:01]} dxc5 {[%emt 0:00:02] [#]} 35. Nf6+ $1 {[%emt 0:00:01][%mdl 576] Discovered Attack} gxf6 {[%emt 0:00:01]} 36. Rxd7 {[%emt 0:00:01]} Rxd7 {[%emt 0:00:02]} 37. Qxf6 {[%emt 0:00:02]} Rd6 {[%emt 0:00:02]} 38. Qh4 {[%emt 0:00:06]} Nd4 {[%emt 0:00:03]} 39. f4 {[%emt 0:00:05]} Nc2 {[%emt 0:00:08]} (39... Rde6 $142 40. Qg4+ Kf8) 40. e5 {[%emt 0:00:18][%mdl 64] Discovered Attack} Rd2 {[%emt 0:00:01] [#]} 41. Re2 {[%emt 0:00:19][%mdl 576] Decoy. White is clearly winning.} Rd1+ {[%emt 0:00:01]} (41... Rxe2 42. Qg4+) 42. Kf2 {[%emt 0:00:01]} Nd4 {[%emt 0:00:01]} 43. Rb2 {[%emt 0:00:01] Black must now prevent Qg4+.} Rc1 {[%emt 0:00:07]} 44. Qxh6 {[%emt 0:00:04]} Ne6 {[%emt 0:00:03]} 45. g4 {[%emt 0:00:07] aiming for f5.} Rd8 {[%emt 0:00:03]} 46. f5 {[%emt 0:00:02] Artfully played by Carlsen.   Weighted Error Value: White=0.08 (flawless) /Black=0.38} 1-0

[Event "Superbet Blitz Poland 2023"]
[Site "Warsaw"]
[Date "2023.05.25"]
[Round "13"]
[White "Giri, Anish"]
[Black "So, Wesley"]
[Result "0-1"]
[ECO "C54"]
[WhiteElo "2768"]
[BlackElo "2760"]
[Annotator "TA"]
[PlyCount "140"]
[EventDate "2023.05.24"]
[EventType "tourn"]
[EventCountry "POL"]
[SourceTitle "playchess.com"]
[Source "ChessBase"]
[SourceQuality "1"]
[TimeControl "300+2"]

{[%evp 12,139,16,10,22,13,21,20,29,14,10,9,12,5,11,10,29,26,22,24,82,26,95,47,56,32,33,17,164,80,87,79,67,87,105,37,68,50,37,-15,-7,0,0,-27,0,-37,16,4,6,0,0,-5,-24,-8,0,-14,-4,-12,-16,-35,-30,-35,-31,-31,0,0,0,-12,-12,-12,0,-33,-40,-125,-132,-116,-108,-199,-186,-295,-283,-385,-400,-377,-343,-556,-542,-491,-485,-987,-808,-1514,-1470,-1423,-1387,-1289,-1289,-1398,-827,-951,-852,-2793,-1823,-1722,-1580,-29967,-29963,-29960,-29963,-3727,-54,-29976,-29977,-29977,-29978,-29978,-29979,-29974,-29977,-29985,-29986,-29986,-29983,-29983,-29984,-29984,-29985,-29990,-29986,-29992]} 1. e4 {[%emt 0:00:01]} e5 {[%emt 0:00:02]} 2. Nf3 {[%emt 0:00:01]} Nc6 {[%emt 0:00:02]} 3. Bc4 {[%emt 0:00:00]} Nf6 {[%emt 0:00:05]} 4. d3 {[%emt 0:00:01]} h6 {[%emt 0:00:02]} 5. O-O {[%emt 0:00:02]} Bc5 {[%emt 0:00:04]} 6. c3 {[%emt 0:00:01]} d6 {[%emt 0:00:01]} 7. Re1 {[%emt 0:00:02]} (7. b4 $5 Bb6 $8 8. a4 $11) 7... O-O {[%emt 0:00:04] C54: Giuoco Piano: 4 c3 Nf6, main lines with 5 d4 and 5 d3.} 8. Nbd2 {[%emt 0:00:01]} (8. b4 $5 Bb6 $8 9. Nbd2 $11) 8... a6 {[%emt 0:00:03]} 9. Nf1 {[%emt 0:00:10]} Ba7 {[%emt 0:00:04] The position is equal.} 10. Ng3 {[%emt 0:00:22]} Na5 {[%emt 0:00:01]} 11. Bb3 {[%emt 0:00:01]} Nxb3 {[%emt 0:00:02]} 12. axb3 {[%emt 0:00:01]} Re8 {[%emt 0:00:05]} 13. h3 {[%emt 0:00:02]} d5 {[%emt 0:00:23]} 14. exd5 {[%emt 0:00:41]} Qxd5 {[%emt 0:00:01] [#]} 15. Be3 $146 {[%emt 0:00:02]} ({Predecessor:} 15. c4 Qd6 16. Be3 c5 17. Nh4 Bd7 18. Nhf5 Qc6 19. Qd2 Bxf5 20. Nxf5 Re6 21. Bxh6 gxh6 22. Qxh6 {1-0 Petkov,M (2510)-Savanovic,A (2386) Novi Sad Serbia op-A 2022 (3)}) 15... Bd7 {[%emt 0:00:55]} (15... c5 $11) 16. b4 {[%emt 0:00:22]} (16. c4 $16 Qd6 17. Bxa7 Rxa7 18. Qd2) 16... Bc6 {[%emt 0:00:16]} (16... Bxe3 $11 {keeps the balance.} 17. Rxe3 Bc6) 17. Bxa7 {[%emt 0:00:23]} (17. Ra5 $1 $16 {[%cal Ra5d5]} b5 18. c4 (18. Rxa6 Bxe3 19. Rxa8 Bxf2+ 20. Kxf2 Bxa8 $15)) 17... Rxa7 $14 {[%emt 0:00:01]} 18. Re3 {[%emt 0:00:27]} (18. Nf5 {looks sharper.} Qd7 19. g4 Qd5 20. Re3) 18... Raa8 {[%emt 0:00:10]} 19. Qe2 {[%emt 0:00:04]} Re6 {[%emt 0:00:08]} (19... e4 $1 $11 20. dxe4 Nxe4) 20. Re1 {[%emt 0:00:23]} (20. Rxe5 Rxe5 21. Qxe5 Qb3 $11) (20. c4 $18 Qd6 21. Nxe5 (21. Rxe5 Rae8 $11)) 20... Rae8 $16 {[%emt 0:00:17]} 21. c4 {[%emt 0:00:03]} (21. Rxe5 $2 Rxe5 22. Ne4 R5e6 $19) 21... Qd6 {[%emt 0:00:02]} 22. Nxe5 {[%emt 0:00:02]} (22. Rxe5 $2 Bxf3 23. Rxe6 Rxe6 $19) 22... Qxb4 {[%emt 0:00:02]} 23. Nf5 {[%emt 0:00:12]} ({Better is} 23. f4 $16) 23... Be4 $1 $14 {[%emt 0:00:21]} 24. dxe4 {[%emt 0:00:40]} Rxe5 {[%emt 0:00:01]} 25. Qf3 {[%emt 0:00:37]} (25. Ng3 $14) 25... Kh7 $11 {[%emt 0:00:01]} 26. b3 {[%emt 0:00:09]} (26. Qg3 g6 27. Qh4 Ng8 $15) 26... a5 {[%emt 0:00:16]} 27. Qf4 {[%emt 0:00:05]} Qb6 {[%emt 0:00:48]} (27... a4 $5) 28. Kh1 {[%emt 0:00:07]} ({But not} 28. Qg3 g6 29. Nh4 Rxe4 30. Rxe4 Rxe4 31. Rxe4 Nxe4 $17) 28... Ng8 {[%emt 0:00:16]} (28... a4 $15) 29. Qg4 {[%emt 0:00:14][%csl Gf5][%cal Rg4g7]} Qg6 {[%emt 0:00:15]} 30. Qe2 {[%emt 0:00:06]} Nf6 {[%emt 0:00:12]} 31. Nh4 {[%emt 0:00:13]} Qh5 {[%emt 0:00:03]} 32. Qxh5 {[%emt 0:00:01]} Rxh5 {[%emt 0:00:11]} 33. Nf3 {[%emt 0:00:00]} Rc5 {[%emt 0:00:01]} 34. e5 {[%emt 0:00:02]} Nd7 {[%emt 0:00:01][%cal Oa5a4]} 35. e6 {[%emt 0:00:03]} fxe6 36. Rxe6 {[%emt 0:00:01]} Rxe6 {[%emt 0:00:02]} 37. Rxe6 $15 {[%emt 0:00:00][%mdl 4096] Endgame [#] KRN-KRN} a4 $1 {[%emt 0:00:06][%mdl 64] Deflection} 38. bxa4 {[%emt 0:00:01][%cal Bb3a4,Ba4a5][%mdl 32]} Rxc4 {[%emt 0:00:01]} 39. a5 {[%emt 0:00:01]} Nc5 {[%emt 0:00:14]} 40. Re7 {[%emt 0:00:06]} Nd3 {[%emt 0:00:01]} 41. Re2 {[%emt 0:00:08]} Ra4 {[%emt 0:00:09]} 42. Rd2 {[%emt 0:00:08] [#] White is on the road to losing.} ({White should play} 42. Re7 $15) 42... Nc5 $1 $17 {[%emt 0:00:01] Black is more active.} 43. g4 {[%emt 0:00:06]} Rxa5 {[%emt 0:00:01]} 44. Kg2 {[%emt 0:00:01]} (44. Nd4 $17) 44... b5 {[%emt 0:00:02][%cal Bb7b5,Bb5b4][%mdl 32]} 45. Rd5 {[%emt 0:00:00]} (45. Rd8 $142) 45... b4 $19 {[%emt 0:00:02] ...b3 is the strong threat.} 46. Nd2 {[%emt 0:00:06] [#]} Nb3 $1 {[%emt 0:00:03][%mdl 576] Discovered Attack} 47. Rxa5 {[%emt 0:00:07]} Nxa5 {[%emt 0:00:01] KN-KN} 48. Kf3 $2 {[%emt 0:00:00]} (48. Ne4) 48... c5 {[%emt 0:00:04][%cal Bc7c5,Bc5c4,Bc4c3][%mdl 32] ...c4 would be deadly.} 49. Ke3 {[%emt 0:00:00]} c4 {[%emt 0:00:02] Threatens to win with ...c3.} 50. Ne4 {[%emt 0:00:01]} (50. Nf3 $142 Kg6 51. Nd4) 50... g5 {[%emt 0:00:13]} 51. Kd4 {[%emt 0:00:06]} c3 {[%emt 0:00:01] aiming for ...c2.} 52. Kd3 {[%emt 0:00:02]} Kg6 {[%emt 0:00:02]} 53. Ng3 {[%emt 0:00:08]} Nc6 {[%emt 0:00:04]} 54. Nf5 {[%emt 0:00:03]} Ne5+ {[%emt 0:00:05]} 55. Kc2 {[%emt 0:00:01]} h5 {[%emt 0:00:04][%cal Bh6h5,Bh5h4,Bh4h3][%mdl 32]} 56. Ne7+ {[%emt 0:00:00]} Kf7 {[%emt 0:00:02]} 57. Nd5 {[%emt 0:00:01] [#]} Nxg4 $1 {[%emt 0:00:13][%mdl 512]} 58. hxg4 {[%emt 0:00:01] KN-KP} (58. f3 Nf2) 58... h4 59. Ne3 {[%emt 0:00:06]} h3 {[%emt 0:00:01]} 60. Nf1 {[%emt 0:00:01] [#]} Ke6 $2 {[%emt 0:00:01]} ({Black should try} 60... Kf6 $1 $19 61. f4 gxf4) 61. Kd3 $2 {[%emt 0:00:05][%mdl 8192]} (61. f4 $15) 61... Ke5 {[%emt 0:00:01] Black mates.} 62. Nh2 {[%emt 0:00:01]} Kf4 {[%emt 0:00:00]} 63. Kc2 {[%emt 0:00:01]} Ke4 {[%emt 0:00:01]} 64. Kb3 {[%emt 0:00:03]} Kd3 {[%emt 0:00:01]} 65. f4 {[%emt 0:00:01]} c2 {[%emt 0:00:02]} 66. Kb2 {[%emt 0:00:01]} Kd2 67. Nf1+ Kd1 {[%emt 0:00:12]} 68. Ne3+ {[%emt 0:00:01]} Ke2 {[%emt 0:00:01]} 69. fxg5 {[%emt 0:00:05]} h2 {[%emt 0:00:01]} 70. Nf5 {[%emt 0:00:03]} Kd2 {[%emt 0:00:01] Weighted Error Value: White=0.54/Black=0.32} ({And not} 70... h1=R 71. Kxc2 b3+ 72. Kxb3 $11) 0-1

[Event "Superbet Blitz Poland 2023"]
[Site "Warsaw"]
[Date "2023.05.25"]
[Round "13"]
[White "Aronian, Levon"]
[Black "Vachier-Lagrave, Maxime"]
[Result "0-1"]
[ECO "B50"]
[WhiteElo "2745"]
[BlackElo "2742"]
[Annotator "TA"]
[PlyCount "46"]
[EventDate "2023.05.24"]
[EventType "tourn"]
[EventCountry "POL"]
[SourceTitle "playchess.com"]
[Source "ChessBase"]
[SourceQuality "1"]
[TimeControl "300+2"]

{[%evp 9,46,20,15,16,20,17,18,14,14,12,13,3,13,7,10,6,23,24,22,6,11,6,9,7,8,8,10,0,6,14,14,12,86,72,87,0,0,-5385,-5293]} 1. e4 {[%emt 0:00:01]} c5 {[%emt 0:00:01]} 2. Nf3 {[%emt 0:00:01]} d6 {[%emt 0:00:02]} 3. Be2 {[%emt 0:00:01]} Nf6 {[%emt 0:00:07]} 4. Nc3 {[%emt 0:00:02]} e5 {[%emt 0:00:05]} 5. Bc4 {[%emt 0:00:01]} Be7 {[%emt 0:00:06]} 6. d3 {[%emt 0:00:01] B50: Sicilian: 2...d6, Miscellaneous.} Nc6 {[%emt 0:00:04]} 7. Bg5 {[%emt 0:00:01]} Be6 {[%emt 0:00:21][%cal Of6e4]} 8. Bxf6 {[%emt 0:00:08] The position is equal.} Bxf6 {[%emt 0:00:02]} 9. Nd5 {[%emt 0:00:01]} O-O {[%emt 0:00:15] [#]} 10. a3 $146 {[%emt 0:00:12]} ({Predecessor:} 10. O-O Rc8 11. c3 Na5 12. a3 Rb8 13. Ba2 b5 14. b4 Nc6 15. a4 a6 16. Re1 Bxd5 17. Bxd5 Ne7 18. Bb3 cxb4 19. cxb4 bxa4 20. Rxa4 Nc6 21. Rxa6 Nxb4 {½-½ Maylott,P (1973)-Vodicka,M (2223) VW-Cup10 Gr37 email 2017}) 10... Bg5 {[%emt 0:00:13]} 11. Nxg5 {[%emt 0:00:30]} Qxg5 {[%emt 0:00:02]} 12. Ne3 {[%emt 0:00:04]} Rad8 {[%emt 0:00:31]} 13. O-O {[%emt 0:00:15]} Bc8 {[%emt 0:00:11]} 14. Kh1 {[%emt 0:00:28]} Kh8 {[%emt 0:00:02]} 15. c3 {[%emt 0:00:47]} f5 {[%emt 0:00:12]} 16. exf5 {[%emt 0:00:08]} Ne7 {[%emt 0:00:09]} 17. Be6 {[%emt 0:00:23]} Nxf5 {[%emt 0:00:08]} 18. Bxc8 {[%emt 0:00:21]} Rxc8 {[%emt 0:00:08]} 19. Nxf5 {[%emt 0:00:02]} Rxf5 {[%emt 0:00:05]} 20. Qa4 {[%emt 0:00:29]} Qe7 {[%emt 0:00:21]} (20... Qd2 $11) 21. Qxa7 $16 {[%emt 0:00:21]} Rcf8 {[%emt 0:00:01]} 22. b4 {[%emt 0:00:08]} (22. f3 $16) 22... Rxf2 $11 {[%emt 0:00:07]} 23. Kg1 {[%emt 0:00:02][%mdl 8192] [#]} (23. Rxf2 $11 Rxf2 24. Kg1) 23... Qf7 {[%emt 0:00:09] Weighted Error Value: White=0.42/Black=0.12 (very precise)} 0-1

[Event "Superbet Blitz Poland 2023"]
[Site "Warsaw"]
[Date "2023.05.25"]
[Round "13"]
[White "Rapport, Richard"]
[Black "Deac, Bogdan-Daniel"]
[Result "1-0"]
[ECO "D31"]
[WhiteElo "2745"]
[BlackElo "2700"]
[Annotator "TA"]
[PlyCount "47"]
[EventDate "2023.05.24"]
[EventType "tourn"]
[EventCountry "POL"]
[SourceTitle "playchess.com"]
[Source "ChessBase"]
[SourceQuality "1"]
[TimeControl "300+2"]

{[%evp 9,47,15,29,22,28,31,43,38,47,48,46,43,41,28,27,40,44,35,15,24,0,-72,-71,-98,-102,-129,-134,-123,-123,-142,-128,-131,-135,-127,0,0,32,52,948,941]} 1. d4 {[%emt 0:00:02]} d5 {[%emt 0:00:01]} 2. c4 {[%emt 0:00:09]} e6 {[%emt 0:00:01]} 3. Nc3 {[%emt 0:00:02]} Be7 {[%emt 0:00:01]} 4. cxd5 {[%emt 0:00:07]} exd5 {[%emt 0:00:01]} 5. Bf4 {[%emt 0:00:02]} c6 {[%emt 0:00:00]} 6. Qc2 {[%emt 0:00:10] D31: Queen's Gambit Declined: Semi-Slav without ...Nf6 (+ Marshall Gambit and Noteboom) and Exchange Variation lines without ...Nf6.} Nd7 {[%emt 0:00:06][%cal Bb8d7,Bd7f8,Bf8e6][%mdl 32]} 7. e3 {[%emt 0:00:06]} Nf8 {[%emt 0:00:05]} 8. Bd3 {[%emt 0:00:09] [#] White is slightly better.} g6 $146 {[%emt 0:00:59]} ({Predecessor:} 8... Ne6 9. Be5 Nf6 10. Nf3 Bd6 {½-½ Arlandi,E (2425)-Mantovani,R (2343) ITA-chT 43rd 2011 (5)}) 9. Nf3 {[%emt 0:00:17]} Ne6 {[%emt 0:00:02]} 10. Be5 {[%emt 0:00:05]} Nf6 {[%emt 0:00:17]} 11. h4 {[%emt 0:00:03][%cal Oh4h5]} Ng7 {[%emt 0:01:12]} 12. O-O-O {[%emt 0:00:22]} O-O {[%emt 0:00:22]} 13. Bxf6 {[%emt 0:00:39]} Bxf6 {[%emt 0:00:02] [#]} 14. h5 $1 {[%emt 0:00:01]} Nxh5 {[%emt 0:00:14]} 15. Rxh5 {[%emt 0:00:01]} gxh5 $17 {[%emt 0:00:01]} 16. Bxh7+ {[%emt 0:00:05] [#]} Kg7 $1 {[%emt 0:00:01]} 17. Bf5 {[%emt 0:00:05]} Bxf5 {[%emt 0:00:42]} 18. Qxf5 {[%emt 0:00:01]} Qc8 {[%emt 0:00:02]} 19. Qd3 {[%emt 0:00:29]} Qg4 {[%emt 0:00:02]} 20. Ne2 {[%emt 0:00:02][%cal Bc3e2,Be2g3,Bg3f5][%mdl 32]} Rfe8 {[%emt 0:01:10]} (20... Qxg2 $2 21. Rg1 $18) 21. Ng3 {[%emt 0:00:15]} h4 {[%emt 0:00:08]} ({Better is} 21... Rh8 $17 {Strongly threatening ...h4.} 22. Ne2 Qg6) 22. Nf5+ $11 {[%emt 0:00:01]} Kf8 {[%emt 0:00:10]} (22... Kh7 $5) 23. Ne5 {[%emt 0:00:01][%mdl 1024] White has compensation. A dynamic duo of knights.} Qg5 $2 {[%emt 0:00:05][%mdl 8192]} (23... Bxe5 $2 24. Qa3+ c5 25. Qxc5+ Kg8 26. Nh6+ Kg7 27. Nxg4 $18) (23... Rxe5 $14 24. dxe5 Be7) 24. f4 {[%emt 0:00:05] Weighted Error Value: White=0.13 (very precise) /Black=0.18 (very precise)} 1-0